Cogmind - Beta 11.1 @@@ ROGUE MODE // 2022.10.04 @ 00:10:34 Player: Pogmind Result: Self-destructed Performance ------------- Evolutions (5) 2500 Regions Visited (14) 2800 Robots Destroyed (120) 600 Value Destroyed (3385) 3385 Prototype IDs (46) 920 Alien Tech Used (0) 0 Bonus (775) 775 TOTAL SCORE: 10980 Bonus ------- High Alert Combat Kills 93 Follower Combat Kills 122 Aligned with FarCom 300 Met Data Miner 300 Friendly Fire -40 Cogmind --------- Core Integrity 1000/1000 Matter 280/300 Energy 300/300 System Corruption 0% Temperature Cool (0) Movement Flying (34) Location -5/Factory Parts ------- > --- POWER (1) -------- Enhanced Nuclear Core > --- PROPULSION (6) --- VTOL Module Improved VTOL Module Flying Fortress v7 > --- UTILITY (8) ------ Large Storage Unit Advanced Visual Processing Unit Microactuators Hardened Light Armor Plating Hacking Suite > --- WEAPON (2) ------- Great Maul Powered Hammer > --- INVENTORY (15) --- Fission Core Airjet Transmission Jammer Makeshift System Shield Authchip [Device] Trap Extractor (4/4 Blade) Peak State ------------ > --- POWER ------------ Enhanced Nuclear Core > --- PROPULSION ------- Armored Treads Armored Treads Flying Fortress v7 > --- UTILITY ---------- Improved Cooling System Huge Storage Unit Hardened Medium Armor Plating Reactive Plating > --- WEAPON ----------- Assault Cannon Great Maul > --- INVENTORY -------- Improved Flight Unit Improved Flight Unit Improved Flight Unit Improved VTOL Module Large Storage Unit High-capacity Storage Unit Superbattery Advanced Visual Processing Unit Improved Sensor Array Improved Signal Interpreter 0b10 Alert Chip Advanced ECM Suite Medium Armor Plating Hacking Suite System Shield Trap Extractor Cooled Pulse Rifle Assault Cannon Assault Cannon Assault Cannon Missile Launcher [Rating: 67] Favorites ----------- Power Heavy Ion Engine Engine Heavy Ion Engine Power Core Enhanced Nuclear Core Propulsion Light Treads Treads Light Treads Wheel Wheel Hover Unit Airjet Flight Unit Improved VTOL Module Utility Light Armor Plating Device Heat Sink Storage Huge Storage Unit Processor Advanced Visual Processing Unit Hackware Hacking Suite Protection Light Armor Plating Weapon Medium Laser Energy Gun Medium Laser Energy Cannon Heavy Particle Cannon Ballistic Gun Heavy Assault Rifle Ballistic Cannon Assault Cannon Launcher Grenade Launcher Special Weapon Plasma Cutter Impact Weapon Great Maul Special Melee Weapon Improved Datajack Build | -11 -10 -10 -10 -9 -8 -7 -7 -7 -7 -7 -7 -6 -6 -5 ------- Run | Scr Mat Min Exi Min Mat Fac Was Fac Low Low Dat Pro Fac Fac Slots Evolved 10 | . . . . . 4 2 . . . . . . 2 2 Power . | . . . . . . . . . . . . . . . Propulsion 4 | . . . . . 2 2 . . . . . . . . Utility 6 | . . . . . 2 . . . . . . . 2 2 Weapon . | . . . . . . . . . . . . . . . Parts Attached 191 | 7 14 2 3 8 109 15 4 17 3 2 . 6 1 . Power 16 | 1 2 . . 1 7 4 . 1 . . . . . . Engine 13 | 1 2 . . 1 6 3 . . . . . . . . Core 3 | . . . . . 1 1 . 1 . . . . . . Reactor . | . . . . . . . . . . . . . . . Propulsion 49 | 2 . . 2 . 25 4 3 6 2 1 . 4 . . Treads 30 | 2 . . 2 . 22 4 . . . . . . . . Leg . | . . . . . . . . . . . . . . . Wheel 2 | . . . . . 2 . . . . . . . . . Hover 8 | . . . . . . . . 6 1 1 . . . . Flight 9 | . . . . . 1 . 3 . 1 . . 4 . . Utility 51 | 2 2 . . . 33 1 1 8 1 1 . 1 1 . Device 20 | 1 1 . . . 10 1 1 5 . . . . 1 . Storage 4 | 1 1 . . . 1 . . 1 . . . . . . Processor 1 | . . . . . . . . 1 . . . . . . Hackware 1 | . . . . . . . . 1 . . . . . . Protection 25 | . . . . . 22 . . . 1 1 . 1 . . Artifact . | . . . . . . . . . . . . . . . Weapon 75 | 2 10 2 1 7 44 6 . 2 . . . 1 . . Energy Gun 29 | . 6 1 1 4 13 3 . 1 . . . . . . Energy Cannon 2 | . . . . . 2 . . . . . . . . . Ballistic Gun 17 | 2 . . . . 15 . . . . . . . . . Ballistic Cannon 2 | . . . . . . 2 . . . . . . . . Launcher 11 | . 4 1 . 3 3 . . . . . . . . . Special Weapon 1 | . . . . . 1 . . . . . . . . . Impact Weapon 12 | . . . . . 9 1 . 1 . . . 1 . . Slashing Weapon . | . . . . . . . . . . . . . . . Piercing Weapon . | . . . . . . . . . . . . . . . Special Melee Weapon 1 | . . . . . 1 . . . . . . . . . Unidentified Prototypes 7 | . . . . . 4 2 . 1 . . . . . . Corrupted Parts 3 | . . . . . 3 . . . . . . . . . System Corruption 18 | . . . . . 18 . . . . . . . . . Parts Lost 41 | . 1 . . . 30 . 2 . . 4 . 4 . . Power 3 | . 1 . . . 2 . . . . . . . . . Propulsion 17 | . . . . . 11 . . . . 3 . 3 . . Utility 13 | . . . . . 10 . 1 . . 1 . 1 . . Weapon 8 | . . . . . 7 . 1 . . . . . . . Highest Loss Streak 7 | . 1 . . . 7 . 2 . . 2 . 3 . . To Critical Strikes . | . . . . . . . . . . . . . . . Average Slot Usage (%) 94 | . 100 100 99 100 99 88 63 44 92 82 69 69 73 . Engine 8 | . 14 14 14 14 8 5 . . . . . . . . Core 1 | . . . . . . 1 4 1 7 7 7 7 6 . Treads 27 | . 28 28 28 28 35 28 15 . . . . . . . Hover 3 | . . . . . . . . 10 46 36 23 1 . . Device 8 | . 14 14 14 14 7 7 7 3 1 . . . 6 . Storage 10 | . 14 14 14 14 9 7 4 1 7 7 7 7 6 . Protection 10 | . . . . . 19 15 5 . 5 6 7 7 6 . Energy Gun 11 | . 22 27 27 27 4 6 . . . . . . . . Ballistic Gun 5 | . 5 . . . 10 . . . . . . . . . Impact Weapon 1 | . . . . . . 2 7 7 7 7 7 7 13 . Naked Turns . | . . . . . . . . . . . . . . . Heaviest Build 125 | 13 50 51 50 52 118 125 117 33 40 40 40 43 42 . Greatest Support 120 | 40 40 40 40 40 87 120 120 49 49 49 24 59 59 . Greatest Overweight (x) 11 | . 1 1 1 1 11 1 1 . . 1 1 2 . . Average Overweight (x) . | . . 1 1 1 1 . . . . . 1 . . . Largest Inventory Capacity 25 | 8 20 20 20 20 25 25 25 15 15 15 15 15 15 . Average Capacity 21 | 7 17 20 20 20 24 25 19 6 15 15 15 15 15 . Most Carried 25 | 3 20 20 20 20 25 25 25 7 14 15 11 11 6 . Average Carried 19 | 2 14 20 19 19 24 24 16 5 9 13 11 6 6 . Final Capacity 25 | 8 20 20 20 20 25 25 5 15 15 15 15 15 15 15 Final Carried 25 | 3 20 20 20 20 25 25 5 7 14 11 11 6 6 6 Class Distribution -------------------- 51% | Mutant 48% | Scavenger-Mutant Dominant Class ---------------- Mutant | -10/Materials Mutant | -10/Mines Mutant | -10/Exiles Mutant | -9/Mines Scavenger-Mutant | -8/Materials Scavenger-Mutant | -7/Factory Mutant | -7/Waste Mutant | -7/Factory Mutant | -7/Lower Caves Mutant | -7/Lower Caves Mutant | -7/Data Miner Mutant | -6/Proximity Caves Mutant | -6/Factory Mutant | -5/Factory Resources | -11 -10 -10 -10 -9 -8 -7 -7 -7 -7 -7 -7 -6 -6 -5 ----------- Run | Scr Mat Min Exi Min Mat Fac Was Fac Low Low Dat Pro Fac Fac Matter Collected 3228 | 292 200 30 . 227 1668 97 . 474 84 49 . 107 . . Remotely . | . . . . . . . . . . . . . . . Salvage Created 4499 | 130 437 51 . 105 2918 178 . 427 42 151 . 60 . . Parts 233 | 8 24 7 . 12 154 11 . 7 2 6 . 2 . . Haulers Intercepted 4 | . 1 . . . 2 . . 1 . . . . . . Recyclers Shooed 4 | . . . . 1 2 . . 1 . . . . . . Parts Field Recycled . | . . . . . . . . . . . . . . . Retrieved Matter . | . . . . . . . . . . . . . . . Parts Self-Destructed 15 | . . . . . . . . . 5 6 . 4 . . Prevented 2 | . . . . . . . . . . 2 . . . . Kills | -11 -10 -10 -10 -9 -8 -7 -7 -7 -7 -7 -7 -6 -6 -5 ------- Run | Scr Mat Min Exi Min Mat Fac Was Fac Low Low Dat Pro Fac Fac Combat Hostiles Destroyed 102 | . 11 3 . 22 50 5 . 1 2 5 . 3 . . Melee 8 | . . . . . . . . . 1 4 . 3 . . Guns 39 | . 2 . . 3 34 . . . . . . . . . Cannons 11 | . . . . . 6 5 . . . . . . . . AOE 35 | . 6 3 . 18 8 . . . . . . . . . Classes Destroyed 16 | 2 5 1 . 1 6 1 . . . . . . . . Worker 8 | . . 1 . 1 3 1 . 2 . . . . . . Builder 6 | . . . . . 4 . . 2 . . . . . . Tunneler 2 | 2 . . . . . . . . . . . . . . Hauler 4 | . 1 . . . 2 . . 1 . . . . . . Recycler 8 | 1 . . . . 4 . . 3 . . . . . . Operator 5 | . 1 . . . 2 1 . 1 . . . . . . Watcher 9 | . 3 . . . 5 . . 1 . . . . . . Swarmer 23 | . 3 3 . 6 4 . . . 2 2 . 3 . . Grunt 39 | . 8 . . . 29 2 . . . . . . . . Brawler 2 | . . . . . 1 1 . . . . . . . . Duelist 2 | . . . . . 2 . . . . . . . . . Sentry 11 | . . . . . 9 . . 1 . 1 . . . . Specialist 4 | . . . . . 4 . . . . . . . . . Programmer 4 | . . . . . . 2 . . . 2 . . . . Heavy 1 | . . . . . 1 . . . . . . . . . Assembled 16 | . . . . 16 . . . . . . . . . . Best Kill Streak 16 | 1 3 3 . 16 6 2 . 3 2 2 . 3 . . Combat Bots Only 16 | . 3 3 . 16 4 2 . 1 2 2 . 3 . . Max Kills in Single Turn 6 | 1 3 2 . 6 4 1 . 1 1 1 . 1 . . Gunslinging . | . . . . . . . . . . . . . . . Exploded 6 | . 3 2 . 6 4 . . . . . . . . . Melee 1 | . . . . . . . . . 1 1 . 1 . . Uniques/NPCs Destroyed . | . . . . . . . . . . . . . . . Combat | -11 -10 -10 -10 -9 -8 -7 -7 -7 -7 -7 -7 -6 -6 -5 -------- Run | Scr Mat Min Exi Min Mat Fac Was Fac Low Low Dat Pro Fac Fac Damage Taken 6549 | . 532 . . 331 4221 288 141 30 111 407 . 468 20 . Core 572 | . 39 . . 48 200 32 48 30 12 80 . 73 10 . Absorbed by Shields 52 | . . . . . 52 . . . . . . . . . Regen/Repaired (Parts) 36 | . 36 . . . . . . . . . . . . . Core Remaining (%) 77 | 100 . . . 65 63 . . . . . . 60 98 . Volleys Fired 333 | 11 44 2 . 25 235 16 . . . . . . . . Largest 2 | 2 2 1 . 2 2 2 . . . . . . . . Hottest 115 | 40 100 30 . 100 115 110 . . . . . . . . Shots Fired 620 | 22 83 2 . 38 442 33 . . . . . . . . Gun 509 | 22 77 . . 26 382 2 . . . . . . . . Cannon 72 | . . . . . 41 31 . . . . . . . . Launcher 27 | . 6 2 . 12 7 . . . . . . . . . Special 12 | . . . . . 12 . . . . . . . . . Kinetic 270 | 22 . . . . 217 31 . . . . . . . . Thermal 287 | . 77 . . 26 184 . . . . . . . . . Explosive 27 | . 6 2 . 12 7 . . . . . . . . . Electromagnetic 36 | . . . . . 34 2 . . . . . . . . Robot Hit Streak 19 | 12 19 . . 3 17 6 . . . . . . . . Robot Miss Streak 7 | 2 3 . . 4 7 4 . . . . . . . . Penetration Max . | . . . . . . . . . . . . . . . Secondary Targets 5 | . 1 . . . 4 . . . . . . . . . Max Gunslinging Chain 1 | . 1 . . . 1 . . . . . . . . . Shots Hit Robots 447 | 18 54 . . 16 297 20 . 14 4 19 . 5 . . Core Hits 216 | 6 23 4 . 41 128 8 . 2 1 2 . 1 . . Critical Kills 6 | . . . . . . . . 2 1 2 . 1 . . Critical Parts Destroyed 8 | . . . . . 1 . . 5 . 1 . 1 . . Critical Strikes 32 | . 7 . . 2 10 . . 7 1 3 . 2 . . Burn 17 | . 7 . . 2 8 . . . . . . . . . Corrupt 1 | . . . . . 1 . . . . . . . . . Smash 14 | . . . . . 1 . . 7 1 3 . 2 . . Melee Attacks 82 | . . . . . 23 1 2 18 5 27 . 6 . . Impact 80 | . . . . . 21 1 2 18 5 27 . 6 . . Slashing . | . . . . . . . . . . . . . . . Piercing . | . . . . . . . . . . . . . . . Sneak Attacks 16 | . . . . . 7 . . 8 . 1 . . . . Combat Hostiles 1 | . . . . . . . . . . 1 . . . . Follow-up Attacks . | . . . . . . . . . . . . . . . Damage Inflicted 11980 | 147 1087 154 . 1379 6116 574 . 1251 191 846 . 235 . . Guns 5279 | 147 717 . . 187 4174 54 . . . . . . . . Cannons 1197 | . . . . . 707 490 . . . . . . . . Explosions 2224 | . 352 105 . 1180 587 . . . . . . . . . Melee 3084 | . . . . . 561 . . 1251 191 846 . 235 . . Ramming 124 | . 18 49 . 12 15 30 . . . . . . . . Kinetic 2930 | 147 . . . . 2293 490 . . . . . . . . Thermal 3013 | . 717 . . 187 2109 . . . . . . . . . Explosive 2224 | . 352 105 . 1180 587 . . . . . . . . . Electromagnetic 605 | . . . . . 551 54 . . . . . . . . Impact 3084 | . . . . . 561 . . 1251 191 846 . 235 . . Slashing . | . . . . . . . . . . . . . . . Piercing . | . . . . . . . . . . . . . . . Highest Corruption 19 | . . . . . 18 4 19 19 9 10 10 10 . . Average Corruption 10 | . . . . . 14 3 12 15 9 9 10 10 . . Corruption Purged 10 | . . . . . . . . 10 . . . . . . Corruption Blocked . | . . . . . . . . . . . . . . . Effects 111 | . . . . . . 4 7 33 16 28 4 19 . . Message Errors 24 | . . . . . . 1 . 4 6 6 . 7 . . Matter Fused 28 | . . . . . . 1 2 6 4 10 2 3 . . Heat Flow Errors 16 | . . . . . . 1 2 2 1 5 1 4 . . Energy Discharges 8 | . . . . . . . . 2 1 3 1 1 . . Parts Rejected 1 | . . . . . . . . 1 . . . . . . Data Loss (minor) 21 | . . . . . . . 2 12 4 2 . 1 . . Data Loss (major) 7 | . . . . . . . . 3 . 1 . 3 . . Misfires 1 | . . . . . . 1 . . . . . . . . Alerts 2 | . . . . . . . 1 . . 1 . . . . Misdirections 3 | . . . . . . . . 3 . . . . . . Overload Shots . | . . . . . . . . . . . . . . . Overflow Damage 1287 | . 10 . . 18 204 26 . 681 43 201 . 104 . . Projectiles 30 | . . . . . 4 26 . . . . . . . . Explosions 64 | . 10 . . 18 36 . . . . . . . . . Melee 1193 | . . . . . 164 . . 681 43 201 . 104 . . Knockbacks 13 | . . 1 . . 1 1 . 8 1 1 . . . . Impact 12 | . . 1 . . 1 . . 8 1 1 . . . . Kinetic 1 | . . . . . . 1 . . . . . . . . Secondary . | . . . . . . . . . . . . . . . Self-Inflicted Damage 64 | . . . . 48 16 . . . . . . . . . Shots 2 | . . . . 1 1 . . . . . . . . . Rammed 20 | . 3 8 . 4 2 3 . . . . . . . . Targets Rammed 22 | . 3 8 . 5 2 4 . . . . . . . . Kicked . | . . . . . . . . . . . . . . . Crushed 2 | . . . . 1 . 1 . . . . . . . . Highest Temperature 392 | . 225 . . 63 291 125 147 185 130 392 229 250 . . Average Temperature 73 | . 66 . . 21 50 57 74 78 59 138 221 125 . . Received Heat Transfer 2097 | . 258 . . . 1710 36 . 9 12 54 . 12 6 . Effects 2 | . . . . . 1 . . . . 1 . . . . Energy Bleed 1 | . . . . . 1 . . . . . . . . . Damage (minor) 1 | . . . . . . . . . . 1 . . . . Siege Activations . | . . . . . . . . . . . . . . . Robots Corrupted 2 | . . . . . 2 . . . . . . . . . Combat Hostiles 2 | . . . . . 2 . . . . . . . . . Parts Fried 29 | . . . . . 16 3 . 9 . . . 1 . . Impact Corruptions 47 | . . . . . 8 . . 25 2 9 . 3 . . Robots Melted 4 | . 3 . . 1 . . . . . . . . . . Combat Hostiles 4 | . 3 . . 1 . . . . . . . . . . Parts Melted 17 | . 6 . . 1 10 . . . . . . . . . Heat Transferred 8658 | . 2590 . . 666 5402 . . . . . . . . . Parts Sabotaged . | . . . . . . . . . . . . . . . Parts Stolen 4 | . . . . . . . . . . 4 . . . . Parts Stripped . | . . . . . . . . . . . . . . . Power Chain Reactions . | . . . . . . . . . . . . . . . Missiles Intercepted . | . . . . . . . . . . . . . . . Alert | -11 -10 -10 -10 -9 -8 -7 -7 -7 -7 -7 -7 -6 -6 -5 ------- Run | Scr Mat Min Exi Min Mat Fac Was Fac Low Low Dat Pro Fac Fac Peak Influence 569 | 15 218 121 . 120 569 268 88 307 . . . . 15 . Initial 258 | . 9 22 . . 46 258 77 61 . . . . . 7 Average 175 | 6 96 37 . 17 255 214 77 174 . . . . 10 . Maximum Alert Level 2 | . 1 . . . 2 1 . 1 . . . . . . Low Security (%) 57 | 100 93 100 . 100 32 24 100 61 . . . . 100 . Level 1 38 | . 6 . . . 59 75 . 38 . . . . . . Level 2 4 | . . . . . 7 . . . . . . . . . Level 3 . | . . . . . . . . . . . . . . . Level 4 . | . . . . . . . . . . . . . . . Level 5 . | . . . . . . . . . . . . . . . High Security . | . . . . . . . . . . . . . . . Max Security . | . . . . . . . . . . . . . . . Sterilizations 1 | . . . . . 1 . . . . . . . . . Squads Dispatched 17 | . 4 . . . 10 2 . 1 . . . . . . Investigation 7 | . 3 . . . 3 . . 1 . . . . . . Extermination 2 | . . . . . . 2 . . . . . . . . Reinforcement 6 | . 1 . . . 5 . . . . . . . . . Assault . | . . . . . . . . . . . . . . . Garrison 2 | . . . . . 2 . . . . . . . . . Intercept . | . . . . . . . . . . . . . . . Searches Triggered . | . . . . . . . . . . . . . . . Construction Impeded . | . . . . . . . . . . . . . . . Haulers Reinforced . | . . . . . . . . . . . . . . . Active Scanning Responses . | . . . . . . . . . . . . . . . Cargo Convoy Interrupts . | . . . . . . . . . . . . . . . Stealth | -11 -10 -10 -10 -9 -8 -7 -7 -7 -7 -7 -7 -6 -6 -5 --------- Run | Scr Mat Min Exi Min Mat Fac Was Fac Low Low Dat Pro Fac Fac Distress Signals 11 | . 2 . . . 9 . . . . . . . . . Communications Jammed . | . . . . . . . . . . . . . . . Distress Signals . | . . . . . . . . . . . . . . . Times Spotted 189 | . 20 . . 26 90 8 6 10 5 11 . 12 1 . Peak Tracking Total 13 | . 3 . . 13 6 3 6 6 5 4 . 4 1 . Tactical Retreats 19 | . . . . 1 9 1 . 2 1 2 . 3 . . Traps | -11 -10 -10 -10 -9 -8 -7 -7 -7 -7 -7 -7 -6 -6 -5 ------- Run | Scr Mat Min Exi Min Mat Fac Was Fac Low Low Dat Pro Fac Fac Traps Triggered 9 | . 3 . . . 2 1 . 3 . . . . . . Indirectly . | . . . . . . . . . . . . . . . Trap Hack Attempts 36 | . . . . . 36 . . . . . . . . . Triggered . | . . . . . . . . . . . . . . . Disarmed . | . . . . . . . . . . . . . . . Reprogrammed 4 | . . . . . 4 . . . . . . . . . Reused . | . . . . . . . . . . . . . . . Traps Extracted 4 | . . . . . 4 . . . . . . . . . Installed . | . . . . . . . . . . . . . . . Triggered . | . . . . . . . . . . . . . . . Most Traps Carried 4 | . . . . . 4 4 4 4 4 4 4 4 4 . Machines | -11 -10 -10 -10 -9 -8 -7 -7 -7 -7 -7 -7 -6 -6 -5 ---------- Run | Scr Mat Min Exi Min Mat Fac Was Fac Low Low Dat Pro Fac Fac Machines Disabled 4 | . . 1 . . 2 . . 1 . . . . . . Max in Single Turn 1 | . . 1 . . 1 . . 1 . . . . . . Garrison Access 2 | . . . . . 1 . . 1 . . . . . . Machines Sabotaged . | . . . . . . . . . . . . . . . Garrisons Compromised . | . . . . . . . . . . . . . . . Overloaded Fab Kills . | . . . . . . . . . . . . . . . Hacking | -11 -10 -10 -10 -9 -8 -7 -7 -7 -7 -7 -7 -6 -6 -5 --------- Run | Scr Mat Min Exi Min Mat Fac Was Fac Low Low Dat Pro Fac Fac Machines Accessed 50 | . 9 1 2 . 17 4 . 12 1 . 4 . . . Terminals 26 | . 6 1 . . 10 2 . 7 . . . . . . Fabricators 1 | . . . . . . . . 1 . . . . . . Repair Stations 6 | . 1 . . . 2 2 . 1 . . . . . . Recycling Units 6 | . 2 . . . 2 . . 2 . . . . . . Scanalyzers 2 | . . . . . 2 . . . . . . . . . Garrison Access 2 | . . . . . 1 . . 1 . . . . . . Total Hacks 150 | . 25 4 2 . 56 7 . 25 1 . 30 . . . Successful 92 | . 17 . 2 . 33 2 . 7 1 . 30 . . . Failed 56 | . 7 4 . . 22 5 . 18 . . . . . . Catastrophic 12 | . 1 1 . . 3 3 . 4 . . . . . . Database Lockouts 2 | . 1 . . . 1 . . . . . . . . . Manual 59 | . 14 4 1 . 25 3 . 12 . . . . . . Terminals 80 | . 21 4 . . 35 4 . 16 . . . . . . Fabricators 3 | . . . . . . . . 3 . . . . . . Repair Stations 11 | . 2 . . . 5 3 . 1 . . . . . . Recycling Units 7 | . 2 . . . 2 . . 3 . . . . . . Scanalyzers 12 | . . . . . 12 . . . . . . . . . Garrison Access 4 | . . . . . 2 . . 2 . . . . . . Terminal Hacks 57 | . 9 . 2 . 15 . . . 1 . 30 . . . Record 12 | . . . 1 . . . . . . . 11 . . . Part Schematic 11 | . . . . . . . . . . . 11 . . . Robot Schematic 5 | . . . . . . . . . . . 5 . . . Robot Analysis 4 | . 2 . . . 2 . . . . . . . . . Prototype ID Bank 6 | . 1 . . . 2 . . . . . 3 . . . Open Door 1 | . . . . . . . . . 1 . . . . . Branch Access Points 1 | . 1 . . . . . . . . . . . . . Terminal Index 1 | . 1 . . . . . . . . . . . . . Alert Level 3 | . . . . . 3 . . . . . . . . . Unreport Threat 2 | . . . . . 2 . . . . . . . . . Locate Traps 6 | . 2 . . . 4 . . . . . . . . . Hauler Manifests 2 | . 1 . . . 1 . . . . . . . . . Zone Layout 2 | . 1 . . . 1 . . . . . . . . . EX-Prototype ID Bank 1 | . . . 1 . . . . . . . . . . . Fabricator Hacks 2 | . . . . . . . . 2 . . . . . . Load Schematic 1 | . . . . . . . . 1 . . . . . . Build 1 | . . . . . . . . 1 . . . . . . Repair Station Hacks 6 | . 2 . . . 2 1 . 1 . . . . . . Scan Component 1 | . 1 . . . . . . . . . . . . . Repair 1 | . 1 . . . . . . . . . . . . . Refit 4 | . . . . . 2 1 . 1 . . . . . . Recycling Unit Hacks 1 | . . . . . . . . 1 . . . . . . Retrieve Components 1 | . . . . . . . . 1 . . . . . . Scanalyzer 9 | . . . . . 9 . . . . . . . . . Insert Component 5 | . . . . . 5 . . . . . . . . . Analyze 4 | . . . . . 4 . . . . . . . . . Garrison Access Hacks 2 | . . . . . 1 . . 1 . . . . . . Seal Access 2 | . . . . . 1 . . 1 . . . . . . Unauthorized Hacks 15 | . 6 . . . 6 1 . 2 . . . . . . Terminals 10 | . 4 . . . 4 1 . 1 . . . . . . Assimilate 2 | . 1 . . . 1 . . . . . . . . . Botnet 6 | . 2 . . . 2 1 . 1 . . . . . . Operators 2 | . 1 . . . 1 . . . . . . . . . Fabricators 1 | . . . . . . . . 1 . . . . . . Recompile 1 | . . . . . . . . 1 . . . . . . Repair Stations . | . . . . . . . . . . . . . . . Recycling Units 4 | . 2 . . . 2 . . . . . . . . . Tunnel 4 | . 2 . . . 2 . . . . . . . . . Scanalyzers . | . . . . . . . . . . . . . . . Garrison Access . | . . . . . . . . . . . . . . . Data Cores Recovered 1 | . . . . . . 1 . . . . . . . . Used 1 | . . . . . . 1 . . . . . . . . Hacking Detections 32 | . 4 1 . . 14 3 . 10 . . . . . . Full Trace Events 1 | . . . . . 1 . . . . . . . . . Feedback Events . | . . . . . . . . . . . . . . . Feedback Blocked . | . . . . . . . . . . . . . . . Robot Schematics Acquired 5 | . . . . . . . . . . . 5 . . . Robots Built 3 | . . . . . . . . 3 . . . . . . Authchips . | . . . . . . . . . . . . . . . Time 116 | . . . . . . . . 116 . . . . . . Total Robot Build Rating 9 | . . . . . . . . 9 . . . . . . Part Schematics Acquired 15 | . . . . . 4 . . . . . 11 . . . Parts Built . | . . . . . . . . . . . . . . . Authchips . | . . . . . . . . . . . . . . . Time . | . . . . . . . . . . . . . . . Total Part Build Rating . | . . . . . . . . . . . . . . . Parts Repaired 1 | . 1 . . . . . . . . . . . . . Time 26 | . 26 . . . . . . . . . . . . . Parts Recycled . | . . . . . . . . . . . . . . . Recycled Matter . | . . . . . . . . . . . . . . . Retrieved Matter . | . . . . . . . . . . . . . . . Retrieved Components 2 | . . . . . . . . 2 . . . . . . Parts Scanalyzed 4 | . . . . . 4 . . . . . . . . . Part Schematics Acquired 4 | . . . . . 4 . . . . . . . . . Parts Damaged 1 | . . . . . 1 . . . . . . . . . Bothacking | -11 -10 -10 -10 -9 -8 -7 -7 -7 -7 -7 -7 -6 -6 -5 ------------ Run | Scr Mat Min Exi Min Mat Fac Was Fac Low Low Dat Pro Fac Fac Used RIF Installer . | . . . . . . . . . . . . . . . Robots Hacked . | . . . . . . . . . . . . . . . Non-combat . | . . . . . . . . . . . . . . . Combat . | . . . . . . . . . . . . . . . Robot Hacks Applied . | . . . . . . . . . . . . . . . Relay Couplers Released . | . . . . . . . . . . . . . . . Fabnet Peak Effective % . | . . . . . . . . . . . . . . . Robots Rewired . | . . . . . . . . . . . . . . . Allies Hacked . | . . . . . . . . . . . . . . . Hacks Repelled . | . . . . . . . . . . . . . . . Allies | -11 -10 -10 -10 -9 -8 -7 -7 -7 -7 -7 -7 -6 -6 -5 -------- Run | Scr Mat Min Exi Min Mat Fac Was Fac Low Low Dat Pro Fac Fac Total Allies 4 | . . . . . . . . 3 . . . 1 . . Largest Group 3 | . . . . . . . . 3 2 2 . 1 . . Highest-Rated Group 96 | . . . . . . . . 48 32 32 . 96 . . Highest-Rated Ally 96 | . . . . . . . . 16 16 16 . 96 . . Total Orders 1 | . . . . . . . . . . 1 . . . . ROAM 1 | . . . . . . . . . . 1 . . . . Ally Attacks 50 | . . . . . . . . 11 18 10 . 11 . . Total Damage 757 | . . . . . . . . 105 154 77 . 421 . . Kills 5 | . . . . . . . . 1 3 1 . . . . Allies Corrupted . | . . . . . . . . . . . . . . . Allies Melted . | . . . . . . . . . . . . . . . Intel | -11 -10 -10 -10 -9 -8 -7 -7 -7 -7 -7 -7 -6 -6 -5 ------- Run | Scr Mat Min Exi Min Mat Fac Was Fac Low Low Dat Pro Fac Fac Robot Analysis Total 4 | . 2 . . . 2 . . . . . . . . . Derelict Logs Recovered 7 | . . 1 . 1 . . . . 2 2 . 1 . . Drone Launches . | . . . . . . . . . . . . . . . Drone Recoveries . | . . . . . . . . . . . . . . . Exploration | -11 -10 -10 -10 -9 -8 -7 -7 -7 -7 -7 -7 -6 -6 -5 ------------- Run | Scr Mat Min Exi Min Mat Fac Was Fac Low Low Dat Pro Fac Fac Turns Passed 19424 | 134 2505 1478 827 1972 8987 783 164 682 464 752 87 576 13 . Spaces Moved 9797 | 56 828 605 268 747 2922 295 165 1226 971 1007 78 597 32 . Core 2 | 2 . . . . . . . . . . . . . . Treads 5656 | 54 828 605 268 747 2829 295 30 . . . . . . . Legs . | . . . . . . . . . . . . . . . Wheels 93 | . . . . . 93 . . . . . . . . . Hover 2270 | . . . . . . . . 191 971 1007 78 23 . . Flight 1776 | . . . . . . . 135 1035 . . . 574 32 . Fastest Speed 34 | 50 160 240 240 240 155 170 35 35 40 40 112 34 34 . Average Speed 156 | 156 230 240 240 240 233 230 67 36 43 60 112 37 34 . Slowest Speed 320 | 160 240 240 240 240 320 250 170 60 44 112 112 176 34 . Overloaded Moves . | . . . . . . . . . . . . . . . Propulsion Burnouts . | . . . . . . . . . . . . . . . Robots Hopped 20 | . . . . . . . 1 11 . . . 7 1 . Cave-ins Triggered . | . . . . . . . . . . . . . . . Exploration Rate (%) 65 | 4 94 99 61 97 95 12 89 29 92 95 72 79 2 . Regions Visited 14 Branch Regions 7 Pre-discovered Areas 8 | . 2 1 1 . 2 . . . . 1 1 . . . Known Exits Taken 4 | . 1 . . . 1 . . . . . . 1 1 . Unknown Exits Taken 8 | 1 . 1 1 1 . . . 1 1 1 1 . . . Scrap Searched 10 | . . 1 . 1 . . . . 5 2 . 1 . . Spaces Dug 45 | . 9 . . 5 24 1 2 3 1 . . . . . Terrain Destroyed 195 | . 42 14 . 64 67 2 2 3 1 . . . . . Melee 21 | . . . . . 14 1 2 3 1 . . . . . Projectile 13 | . . . . . 12 1 . . . . . . . . AOE 161 | . 42 14 . 64 41 . . . . . . . . . Terrain Rammed . | . . . . . . . . . . . . . . . Walls Destroyed . | . . . . . . . . . . . . . . . Machines Disabled . | . . . . . . . . . . . . . . . Actions | -11 -10 -10 -10 -9 -8 -7 -7 -7 -7 -7 -7 -6 -6 -5 --------- Run | Scr Mat Min Exi Min Mat Fac Was Fac Low Low Dat Pro Fac Fac Total 13078 | 82 1338 618 456 881 4580 363 219 1409 998 1098 77 928 31 . Wait 2397 | 6 429 . 177 92 1149 15 35 98 12 58 . 326 . . Move 9747 | 55 827 604 267 746 2921 295 162 1204 970 1006 77 584 29 . Hop 17 | . . . . . . . 1 10 . . . 5 1 . Pick Up 97 | 3 17 1 3 2 58 3 . 1 5 3 . 1 . . Fast Attach 68 | 7 2 . . . 27 10 . 16 2 1 . 2 1 . Attach 52 | . 1 . 3 1 38 . 4 . 1 1 . 3 . . Detach 17 | . 2 . . . 6 . 5 1 3 . . . . . Swap 71 | . 11 2 . 7 44 5 . 1 . . . 1 . . Drop 85 | . 2 1 6 3 41 14 10 6 . 2 . . . . Fire 333 | 11 44 2 . 25 235 16 . . . . . . . . Melee 82 | . . . . . 23 1 2 18 5 27 . 6 . . Ram . | . . . . . . . . . . . . . . . Kick . | . . . . . . . . . . . . . . . Crush 22 | . 3 8 . 5 2 4 . . . . . . . . Escape Stasis 54 | . . . . . . . . 54 . . . . . . Rewire . | . . . . . . . . . . . . . . . Trap 36 | . . . . . 36 . . . . . . . . . Miscellaneous . | . . . . . . . . . . . . . . . Route ------- -11/Scrapyard -10/Materials (discovered 3 exits: [*Mat x2] / *Min) -10/Mines (discovered 3 exits: [*Mat x2] / *Exi) -10/Exiles (discovered 2 exits: [*Min x2]) -9/Mines (discovered 2 exits: *Mat x2) -8/Materials (discovered 3 exits: *Fac x3) -7/Factory -7/Waste -7/Factory -7/Lower Caves (discovered 2 exits: [*Low] / *Dat) -7/Lower Caves (discovered 2 exits: *Fac / *Dat) -7/Data Miner -6/Proximity Caves -6/Factory (discovered 2 exits: *Fac x2) -5/Factory History --------- Turn | Location | Event 9 | -11/Scrapyard | Discovered new exit (range 15) 135 | -11/Scrapyard | Entered Materials 307 | -10/Materials | Build established: Mutant 681 | -10/Materials | Central database locked down 903 | -10/Materials | Discovered new exit (range 13) 1098 | -10/Materials | Identified exit to Mines 1706 | -10/Materials | Discovered new exit (range 16) 1973 | -10/Materials | Repaired Grenade Launcher 2640 | -10/Materials | Entered Mines 2641 | -10/Mines | Learned location of Storage (-9) 2727 | -10/Mines | Met a Derelict bent on vengeance 2818 | -10/Mines | Found a hidden stash of uninstalled traps 2861 | -10/Mines | Deemed a non-threat by the Exiles lab entrance 2871 | -10/Mines | Discovered new exit (range 5) 3434 | -10/Mines | Discovered new exit (range 5) 3818 | -10/Mines | Learned Materials terminal intel 3849 | -10/Mines | Discovered new exit (range 9) 4118 | -10/Mines | Entered Exiles 4157 | -10/Exiles | Discovered new exit (range 15) 4183 | -10/Exiles | Met 8R-AWN 4214 | -10/Exiles | Met EX-HEX 4291 | -10/Exiles | Met EX-BIN 4325 | -10/Exiles | Met EX-DEC 4334 | -10/Exiles | Learned location of Zion (-6) 4435 | -10/Exiles | Aligned with FarCom system 4438 | -10/Exiles | Given EX-Vault access code 4493 | -10/Exiles | Opened EX-Vault 4528 | -10/Exiles | Found Flying Fortress v7 4538 | -10/Exiles | Found Superbattery 4721 | -10/Exiles | Found 0b10 Alert Chip 4770 | -10/Exiles | Warned to stay clear of 0b10 Research branches 4776 | -10/Exiles | Exiles lab attacked by MAIN.C 4921 | -10/Exiles | Discovered new exit (range 12) 4945 | -10/Exiles | Stole three prototypes: Flying Fortress v7, Superbattery, 0b10 Alert Chip 4945 | -10/Exiles | Entered Mines 5092 | -9/Mines | Received a Rocket Launcher from a helpful Derelict 5267 | -9/Mines | Assembled infested the area 5272 | -9/Mines | Assisted by a Guerilla fighting off Assembled 5317 | -9/Mines | Destroyed 16 combat bots 6026 | -9/Mines | Learned 2 Materials zone layouts 6504 | -9/Mines | Discovered new exit (range 9) 6729 | -9/Mines | Discovered new exit (range 6) 6917 | -9/Mines | Entered Materials 6917 | -8/Materials | Evolved 4 slots: Propulsion x2, Utility x2 6918 | -8/Materials | Identified exit to Factory 6919 | -8/Materials | Loaded intel: 12 terminal locations 7475 | -8/Materials | Build established: Scavenger-Mutant 8469 | -8/Materials | Central database locked down 9653 | -8/Materials | Lost 4 parts (1n1u2w) 10132 | -8/Materials | Lost 4 parts (1p1n2u) 10334 | -8/Materials | Garrison activated, responded to threat 10419 | -8/Materials | Lost 7 parts (2n3u2w) 10940 | -8/Materials | Discovered exit to Factory (range 8) 13758 | -8/Materials | Garrison activated, responded to threat 15652 | -8/Materials | Discovered exit to Factory (range 7) 15714 | -8/Materials | Lost 3 parts (2n1w) 15880 | -8/Materials | Sterilization system engaged 15880 | -8/Materials | Non-combat units ordered to evacuate 15892 | -8/Materials | System corruption reached 10% 15904 | -8/Materials | Entered Factory 15904 | -7/Factory | Evolved 2 slots: Propulsion x2 15906 | -7/Factory | FarCom data flow suspended 16687 | -7/Factory | Sucked down chute 16687 | -7/Factory | Entered Waste 16702 | -7/Waste | EMP discharged 16702 | -7/Waste | System corruption reached 10% 16721 | -7/Waste | Spotted C-40 Crusher 16752 | -7/Waste | Spotted C-40 Crusher 16802 | -7/Waste | EMP discharged 16806 | -7/Waste | Crushed by Compactor (1 part destroyed, 2 dropped) 16809 | -7/Waste | Crushed by Compactor (1 part destroyed, 1 dropped) 16817 | -7/Waste | Spotted C-40 Crusher 16821 | -7/Waste | Spotted C-40 Crusher 16821 | -7/Waste | Spotted C-40 Crusher 16844 | -7/Waste | Discovered new exit (range 11) 16844 | -7/Waste | Spotted C-40 Crusher 16851 | -7/Waste | Entered Factory 16921 | -7/Factory | Discovered new exit (range 15) 17043 | -7/Factory | Build established: Mutant 17359 | -7/Factory | Fabricated G-47 Trooper? 17533 | -7/Factory | Entered Lower Caves 17533 | -7/Lower Caves | Accompanied by 2 allies 17542 | -7/Lower Caves | Learned location of 1 exit from Factory 17567 | -7/Lower Caves | Learned Factory trap positions 17600 | -7/Lower Caves | Spotted B-75 Beast 17615 | -7/Lower Caves | Encountered a Warlord checkpoint 17644 | -7/Lower Caves | A Derelict revealed a hidden shortcut to meet someone special 17855 | -7/Lower Caves | Discovered new exit (range 13) 17997 | -7/Lower Caves | Entered another Lower Caves area 17997 | -7/Lower Caves | Accompanied by 2 allies 18002 | -7/Lower Caves | Discovered new exit (range 14) 18205 | -7/Lower Caves | Attracted the attention of an 0b10 checkpoint 18269 | -7/Lower Caves | Spotted B-75 Beast 18491 | -7/Lower Caves | Spotted WR-COK(f) 18492 | -7/Lower Caves | Spotted 1T-EPP(f) 18492 | -7/Lower Caves | Hpw. Shock Rifle stolen by Master Thief 18493 | -7/Lower Caves | Encountered a Master Thief 18493 | -7/Lower Caves | Encountered a Master Thief 18493 | -7/Lower Caves | Spotted G8-LXR(f) 18494 | -7/Lower Caves | Encountered a Master Thief 18494 | -7/Lower Caves | Spotted P2-BN2(f) 18495 | -7/Lower Caves | Encountered a Master Thief 18497 | -7/Lower Caves | Plasma Rifle stolen by Master Thief 18497 | -7/Lower Caves | Thermic Laser stolen by Master Thief 18501 | -7/Lower Caves | Gravmag System stolen by Master Thief 18514 | -7/Lower Caves | Learned Factory garrison access intel 18520 | -7/Lower Caves | Discovered new exit (range 9) 18749 | -7/Lower Caves | Entered Data Miner 18749 | -7/Data Miner | Discovered new exit (range 6) 18766 | -7/Data Miner | Met Data Miner 18793 | -7/Data Miner | Learned location of Section 7 (-2) 18793 | -7/Data Miner | Acquired the access code to Warlord's prototype stash 18810 | -7/Data Miner | Received God Mode back door access code from Data Miner 18836 | -7/Data Miner | Entered Proximity Caves 18909 | -6/Proximity Caves | Lost 3 parts (3n) 18915 | -6/Proximity Caves | Escorted by Enhanced Grunt 18946 | -6/Proximity Caves | Spotted B-75 Beast 19161 | -6/Proximity Caves | Received a Behemoth hack from an annoying Tinkerer 19340 | -6/Proximity Caves | Identified exit to Factory 19412 | -6/Proximity Caves | Entered Factory 19412 | -6/Factory | Evolved 2 slots: Utility x2 19413 | -6/Factory | Identified exit to Factory 19414 | -6/Factory | Loaded intel: 74 trap records 19415 | -6/Factory | Loaded intel: 4 garrison access locations 19415 | -6/Factory | Discovered exit to Factory (range 9) 19425 | -6/Factory | Entered another Factory area 19425 | -5/Factory | Evolved 2 slots: Utility x2 19425 | -5/Factory | Self-destructed Last Messages --------------- 19346_ Identified Powered Hammer. 19347_ Acquired 31 matter. 19348_ Acquired Fission Core. 19362_ System corrupted: Substantial component data lost. 19377_ DUXSKV1BN8OH5V5 ZC84J 19396_ System corrupted: Heat flow error (+163). 19401_ Hrd. Medium Armor Plating destroyed. PARAMETERS=UTILITY+2 LOCATION=FACTORY GOAL=ESCAPE Loading 1 Factory exit... Loading Factory trap records (x74)... Loading Factory garrison access intel (x4)... 19415_ EXIT=FOUND: FACTORY 19416_ Acquired Unknown Device. 19416_ Identified Microactuators. 19423_ ALERT: All DSF locations entering lockdown mode. PARAMETERS=UTILITY+2 LOCATION=FACTORY GOAL=ESCAPE Map ----- +----------------------------------------------------+ | ???????????????????????????????????????????????? | | ???????????????????????????????????????????????? | | ???????????????????????????????????????????????? | | ???????????????????????????????????????????????? | | ???????????????????????????????????????????????? | | ???????????????????????????????????????????????? | | ???????????????????????????????????????????????? | | ???????????????????????????????????????????????? | | ???????????????????????????????????????????????? | | ???????????????????????????????????????????????? | | ???????????????????????????????????????????????? | | ???????????????????????????????????????????????? | | ???????????????????????????????????????????????? | | ???????????????????????????????????????????????? | | ???????????????????????????????????????????????? | | ???????????????????????????????????????????????? | | ???????????????????????????????????????????????? | | ???????????????????????????????????????????????? | | ???????????????????????????????????????????????? | | ???????????????????????????????????????????????? | | ???????????????????????????????????????????????? | | ???????????????????????????????????????????????? | | ?????????????###########+####??????????????????? | | ?????????????# #??????????????????? | | ?????????????# #??????????????????? | | ?????????????# @ #??????????????????? | | ?????????????# #??????????????????? | | ?????????????# #??????????????????? | | ?????????????# #####+####??????????????????? | | ?????????????# ??????????????????????????????? | | ??????????? ????????????????????????????????? | | ????????? ???????????????????????????????????? | | ???????? ?????????????????????????????????????? | | ???????????????????????????????????????????????? | | ???????????????????????????????????????????????? | | ???????????????????????????????????????????????? | | ???????????????????????????????????????????????? | | ???????????????????????????????????????????????? | | ???????????????????????????????????????????????? | | ???????????????????????????????????????????????? | | ???????????????????????????????????????????????? | | ???????????????????????????????????????????????? | | ???????????????????????????????????????????????? | | ???????????????????????????????????????????????? | | ???????????????????????????????????????????????? | | ???????????????????????????????????????????????? | | ???????????????????????????????????????????????? | | ???????????????????????????????????????????????? | | ???????????????????????????????????????????????? | | ???????????????????????????????????????????????? | +----------------------------------------------------+ Best States ------------- Heat Dissipation 61 Energy Generation 17 Energy Capacity 300 Matter Stores 300 Matter Capacity 300 Sight Range 20 Robot Scan Range 15 Terrain Scan Density 10 Jamming Range 12 Armor Coverage 600 Resistance: KI 20 Melee Speed Boost 20 Evasion (%) 63 Recoil Reduction 6 Offensive Hacking 10 Authchip Count 1 Trap Extractor Capacity 4 Item Schematics ----------------- Imp. Signal Interpreter | -8/Materials | Scanalyzed Lgt. Armor Plating | -8/Materials | Scanalyzed Seismic Detector | -8/Materials | Scanalyzed Lgt. Treads | -8/Materials | Scanalyzed Combat Drone Bay | -7/Data Miner | Free Lgt. Regenerative Plating | -7/Data Miner | Free Cld. Aerolev Unit | -7/Data Miner | Free Exp. Propulsion Shielding | -7/Data Miner | Free Imp. Heavy Laser | -7/Data Miner | Free Field Propulsion Drive | -7/Data Miner | Free Imp. Transmission Jammer | -7/Data Miner | Free Disruptor Cannon | -7/Data Miner | Free Imp. Corruption Screen | -7/Data Miner | Free Force Field | -7/Data Miner | Free Myomer Leg | -7/Data Miner | Free Robot Schematics ------------------ E-15 Imp | -7/Data Miner | Free R-10 Processor | -7/Data Miner | Free L-41 Fighter | -7/Data Miner | Free G-50 Soldier | -7/Data Miner | Free B-60 Warrior | -7/Data Miner | Free Fabricated ------------ G-47 Trooper | x3 | -7/Factory | Preloaded Alien Tech Used ----------------- None Achievements -------------- None Challenges ------------ None Game ------ Seed GaussBurstLaser Manual? 0 Play Time 02:26:25 Cumulative 537.9 hours Start 2022.10.02 @ 22:12:33 End 2022.10.04 @ 00:10:34 Sessions 7 Manual Loads 0 Difficulty Rogue Special Mode None Game No. 51 Rogue 41 Adventurer 5 Explorer 5 Win Type - Total 22 Types 6/5/4/0/3/1/2/0/1 Lore% 86 Gallery% 93 Achievement% 83 Wizard Run 0 Options --------- ASCII 0 Keyboard 1 Movement Arrows Keybinds 0 Fullscreen 2 Font 18/SmallcapsGlow Map View 76x50 Tactical HUD 1 Map Filters NONE Filters NONE Steam 1 RUN: 5b4ee6bb-1cfc-4b92-9cf4-1c5689f98307